[Event "*** Titled Tuesday Blitz"]
[Site "Chess.com"]
[Date "2020.11.03"]
[Round "7"]
[White "Tactictic"]
[Black "Ranindu2003"]
[Result "0-1"]
[WhiteElo "2401"]
[BlackElo "2576"]
[TimeControl "180+1"]
[EndTime "11:20:48 PST"]
[Termination "Ranindu2003 won on time"]

1. e4 {[%clk 0:03:00.9]} 1... e6 {[%clk 0:02:59.3]} 2. d4 {[%clk 0:03:00.6]}
2... d5 {[%clk 0:02:59.6]} 3. Nd2 {[%clk 0:03:01.3]} 3... c5 {[%clk 0:02:58.3]}
4. exd5 {[%clk 0:03:01.1]} 4... Qxd5 {[%clk 0:02:57.6]} 5. Ngf3 {[%clk
0:03:01.8]} 5... cxd4 {[%clk 0:02:56.6]} 6. Bc4 {[%clk 0:03:02.1]} 6... Qd6
{[%clk 0:02:56.6]} 7. O-O {[%clk 0:02:57.7]} 7... Nf6 {[%clk 0:02:56.8]} 8. Nb3
{[%clk 0:02:56.8]} 8... Nc6 {[%clk 0:02:57]} 9. Nbxd4 {[%clk 0:02:55.4]} 9...
Nxd4 {[%clk 0:02:57.1]} 10. Nxd4 {[%clk 0:02:56.3]} 10... Be7 {[%clk 0:02:56.7]}
11. c3 {[%clk 0:02:49.4]} 11... O-O {[%clk 0:02:55.5]} 12. Qf3 {[%clk
0:02:44.3]} 12... Qc7 {[%clk 0:02:48.6]} 13. Bb3 {[%clk 0:02:28.5]} 13... Bd7
{[%clk 0:02:44.2]} 14. Re1 {[%clk 0:02:13.8]} 14... a5 {[%clk 0:02:43.6]} 15.
Bf4 {[%clk 0:02:10.5]} 15... Bd6 {[%clk 0:02:43.1]} 16. Bxd6 {[%clk 0:02:10.2]}
16... Qxd6 {[%clk 0:02:43.4]} 17. a4 {[%clk 0:02:11]} 17... Rfe8 {[%clk
0:02:15.6]} 18. Rad1 {[%clk 0:02:08.5]} 18... Qb6 {[%clk 0:02:11.7]} 19. Re5
{[%clk 0:01:56.5]} 19... Rac8 {[%clk 0:02:04.8]} 20. Rg5 {[%clk 0:01:31.1]}
20... h6 {[%clk 0:01:51.5]} 21. Rg3 {[%clk 0:01:30]} 21... Kh8 {[%clk
0:01:48.1]} 22. h4 {[%clk 0:01:13.7]} 22... Rcd8 {[%clk 0:01:41]} 23. Bc2 {[%clk
0:01:06.5]} 23... Qc5 {[%clk 0:01:29.5]} 24. Qe2 {[%clk 0:00:41.3]} 24... e5
{[%clk 0:01:04.4]} 25. Nb3 {[%clk 0:00:35]} 25... Qc7 {[%clk 0:01:01.9]} 26.
Rgd3 {[%clk 0:00:29.6]} 26... e4 {[%clk 0:00:55.5]} 27. Rd4 {[%clk 0:00:27.1]}
27... Bg4 {[%clk 0:00:54.1]} 28. f3 {[%clk 0:00:20]} 28... exf3 {[%clk
0:00:49.8]} 29. Qd3 {[%clk 0:00:18.8]} 29... f2+ {[%clk 0:00:48.5]} 30. Kxf2
{[%clk 0:00:16.2]} 30... Bxd1 {[%clk 0:00:47.6]} 31. Qxd1 {[%clk 0:00:16.4]}
31... Rxd4 {[%clk 0:00:41.3]} 32. Qxd4 {[%clk 0:00:17.3]} 32... Rd8 {[%clk
0:00:38]} 33. Qa7 {[%clk 0:00:02.9]} 33... Qf4+ {[%clk 0:00:37.1]} 34. Ke1
{[%clk 0:00:03]} 34... Qxh4+ {[%clk 0:00:32.4]} 35. Ke2 {[%clk 0:00:02.8]} 35...
Ng4 {[%clk 0:00:30.1]} 36. Be4 {[%clk 0:00:01.5]} 36... Re8 {[%clk 0:00:28.9]}
0-1

[Event "*** Titled Tuesday Blitz"]
[Site "Chess.com"]
[Date "2020.11.03"]
[Round "7"]
[White "TregubovP"]
[Black "Ural_bogatyr"]
[Result "1/2-1/2"]
[WhiteElo "2535"]
[BlackElo "2389"]
[TimeControl "180+1"]
[EndTime "11:20:48 PST"]
[Termination "Game drawn by repetition"]

1. e4 {[%clk 0:03:00.9]} 1... e5 {[%clk 0:02:53.8]} 2. Nf3 {[%clk 0:03:00.4]}
2... Nc6 {[%clk 0:02:51.6]} 3. Bb5 {[%clk 0:03:00.6]} 3... Bc5 {[%clk
0:02:50.9]} 4. O-O {[%clk 0:02:52.9]} 4... Nf6 {[%clk 0:02:50]} 5. c3 {[%clk
0:02:50.1]} 5... O-O {[%clk 0:02:49.7]} 6. d4 {[%clk 0:02:48.6]} 6... Bb6 {[%clk
0:02:49.1]} 7. d5 {[%clk 0:02:32.6]} 7... Ne7 {[%clk 0:02:47.4]} 8. Nxe5 {[%clk
0:02:24.8]} 8... d6 {[%clk 0:02:46.2]} 9. Nc4 {[%clk 0:02:23.3]} 9... Nxe4
{[%clk 0:02:46]} 10. Nxb6 {[%clk 0:02:23.3]} 10... axb6 {[%clk 0:02:46.9]} 11.
Bd3 {[%clk 0:02:15.6]} 11... Nf6 {[%clk 0:02:46.1]} 12. c4 {[%clk 0:02:15.2]}
12... Bf5 {[%clk 0:02:44.6]} 13. Nc3 {[%clk 0:02:15.1]} 13... Qd7 {[%clk
0:02:43.6]} 14. Bg5 {[%clk 0:02:13.8]} 14... Bxd3 {[%clk 0:02:29.3]} 15. Qxd3
{[%clk 0:02:13.7]} 15... Qf5 {[%clk 0:02:30]} 16. Qxf5 {[%clk 0:02:13]} 16...
Nxf5 {[%clk 0:02:30.9]} 17. Bxf6 {[%clk 0:02:13.6]} 17... gxf6 {[%clk
0:02:31.8]} 18. Nb5 {[%clk 0:01:55.6]} 18... c6 {[%clk 0:02:24.6]} 19. Nc3
{[%clk 0:01:52.8]} 19... Rfe8 {[%clk 0:02:19.3]} 20. Rad1 {[%clk 0:01:51.6]}
20... c5 {[%clk 0:02:16.1]} 21. Rfe1 {[%clk 0:01:38.9]} 21... Kg7 {[%clk
0:02:12.7]} 22. Kf1 {[%clk 0:01:34.7]} 22... Nd4 {[%clk 0:02:09]} 23. Rxe8
{[%clk 0:01:28.4]} 23... Rxe8 {[%clk 0:02:08.6]} 24. Re1 {[%clk 0:01:29]} 24...
Rxe1+ {[%clk 0:02:06.5]} 25. Kxe1 {[%clk 0:01:28.9]} 25... f5 {[%clk 0:02:07.4]}
26. Kd2 {[%clk 0:01:27.7]} 26... Kf6 {[%clk 0:02:03.7]} 27. Ne2 {[%clk
0:01:13.4]} 27... Nxe2 {[%clk 0:01:50.7]} 28. Kxe2 {[%clk 0:01:13.2]} 28... Ke5
{[%clk 0:01:51.6]} 29. Ke3 {[%clk 0:01:10.6]} 29... f4+ {[%clk 0:01:48.7]} 30.
Kd3 {[%clk 0:01:11.1]} 30... h5 {[%clk 0:01:23.8]} 31. h4 {[%clk 0:01:09.5]}
31... Kf5 {[%clk 0:01:22.4]} 32. f3 {[%clk 0:01:09.1]} 32... Ke5 {[%clk
0:01:22.7]} 33. Kc3 {[%clk 0:01:08.6]} 33... b5 {[%clk 0:00:29.8]} 34. cxb5
{[%clk 0:01:04.8]} 34... Kxd5 {[%clk 0:00:29.7]} 35. b3 {[%clk 0:01:03.2]} 35...
Ke5 {[%clk 0:00:25]} 36. Kc4 {[%clk 0:01:01.7]} 36... b6 {[%clk 0:00:25]} 37. a4
{[%clk 0:01:01.9]} 37... d5+ {[%clk 0:00:25.4]} 38. Kc3 {[%clk 0:00:59.3]} 38...
Kd6 {[%clk 0:00:25.7]} 39. b4 {[%clk 0:00:49.6]} 39... f5 {[%clk 0:00:19.4]} 40.
a5 {[%clk 0:00:31.3]} 40... bxa5 {[%clk 0:00:19.2]} 41. bxa5 {[%clk 0:00:31.1]}
41... Kc7 {[%clk 0:00:19.2]} 42. Kd3 {[%clk 0:00:30.6]} 42... Kb7 {[%clk
0:00:19.4]} 43. Kc3 {[%clk 0:00:30.6]} 43... Kc7 {[%clk 0:00:19.8]} 44. Kd3
{[%clk 0:00:30.8]} 44... Kb7 {[%clk 0:00:20.3]} 45. Kc3 {[%clk 0:00:27.7]} 45...
Kc7 {[%clk 0:00:20.1]} 1/2-1/2

[Event "*** Titled Tuesday Blitz"]
[Site "Chess.com"]
[Date "2020.11.03"]
[Round "7"]
[White "LimeInTheCoconut"]
[Black "Chernobay_Artem"]
[Result "0-1"]
[WhiteElo "2429"]
[BlackElo "2617"]
[TimeControl "180+1"]
[EndTime "11:20:49 PST"]
[Termination "Chernobay_Artem won by checkmate"]

1. d4 {[%clk 0:03:00.9]} 1... g6 {[%clk 0:02:55.8]} 2. e4 {[%clk 0:02:56.5]}
2... Bg7 {[%clk 0:02:55.1]} 3. c4 {[%clk 0:02:54]} 3... d6 {[%clk 0:02:53.9]} 4.
Nc3 {[%clk 0:02:48.9]} 4... e5 {[%clk 0:02:53.1]} 5. Nge2 {[%clk 0:02:46.6]}
5... Nc6 {[%clk 0:02:52.1]} 6. Be3 {[%clk 0:02:44.9]} 6... Nf6 {[%clk
0:02:22.7]} 7. f3 {[%clk 0:02:40.1]} 7... O-O {[%clk 0:02:16.1]} 8. Qd2 {[%clk
0:02:39.5]} 8... a6 {[%clk 0:02:03.1]} 9. d5 {[%clk 0:02:16.7]} 9... Na5 {[%clk
0:01:48.8]} 10. Nc1 {[%clk 0:02:14.3]} 10... c5 {[%clk 0:01:48.1]} 11. Be2
{[%clk 0:02:07.6]} 11... Nh5 {[%clk 0:01:42.7]} 12. O-O {[%clk 0:02:04.4]} 12...
Bd7 {[%clk 0:01:41.2]} 13. a3 {[%clk 0:01:57.9]} 13... b5 {[%clk 0:01:36.5]} 14.
cxb5 {[%clk 0:01:51.9]} 14... axb5 {[%clk 0:01:35.3]} 15. Nxb5 {[%clk
0:01:31.9]} 15... Qb8 {[%clk 0:01:22.8]} 16. a4 {[%clk 0:01:30.2]} 16... Nf4
{[%clk 0:01:16.5]} 17. Bxf4 {[%clk 0:01:07.5]} 17... exf4 {[%clk 0:01:15.2]} 18.
Qxf4 {[%clk 0:01:03.8]} 18... Bxb2 {[%clk 0:01:13.4]} 19. Rb1 {[%clk 0:00:52.5]}
19... Be5 {[%clk 0:00:59.3]} 20. Qh4 {[%clk 0:00:52.4]} 20... f5 {[%clk
0:00:48.1]} 21. exf5 {[%clk 0:00:36.1]} 21... Bxf5 {[%clk 0:00:44.6]} 22. Bd3
{[%clk 0:00:36.6]} 22... Bd7 {[%clk 0:00:37.4]} 23. f4 {[%clk 0:00:34.5]} 23...
Bf6 {[%clk 0:00:35.2]} 24. Qg3 {[%clk 0:00:33.7]} 24... Kg7 {[%clk 0:00:31.4]}
25. Ne2 {[%clk 0:00:24.4]} 25... c4 {[%clk 0:00:30.7]} 26. Bc2 {[%clk
0:00:22.6]} 26... Nb3 {[%clk 0:00:27.2]} 27. Bxb3 {[%clk 0:00:19.4]} 27... cxb3
{[%clk 0:00:26.4]} 28. Qxb3 {[%clk 0:00:20.3]} 28... Re8 {[%clk 0:00:24.9]} 29.
Ned4 {[%clk 0:00:19.1]} 29... Qb6 {[%clk 0:00:24.5]} 30. Rbd1 {[%clk 0:00:07.8]}
30... Re4 {[%clk 0:00:23.9]} 31. Kh1 {[%clk 0:00:05.2]} 31... Bxd4 {[%clk
0:00:23.4]} 32. Nxd4 {[%clk 0:00:04.2]} 32... Qxb3 {[%clk 0:00:18.7]} 33. Nxb3
{[%clk 0:00:05.1]} 33... Raxa4 {[%clk 0:00:18.3]} 34. Rc1 {[%clk 0:00:02.7]}
34... Rxf4 {[%clk 0:00:15.9]} 35. Rc7 {[%clk 0:00:03.1]} 35... Rxf1# {[%clk
0:00:15.4]} 0-1

[Event "*** Titled Tuesday Blitz"]
[Site "Chess.com"]
[Date "2020.11.03"]
[Round "7"]
[White "tsvet2005"]
[Black "Frogo47"]
[Result "1-0"]
[WhiteElo "2697"]
[BlackElo "2451"]
[TimeControl "180+1"]
[EndTime "11:20:50 PST"]
[Termination "tsvet2005 won on time"]

1. d4 {[%clk 0:03:00.9]} 1... Nf6 {[%clk 0:02:54.3]} 2. c4 {[%clk 0:03:00.4]}
2... g6 {[%clk 0:02:54.6]} 3. Nc3 {[%clk 0:02:59.9]} 3... d5 {[%clk 0:02:55.2]}
4. Nf3 {[%clk 0:02:59.7]} 4... Bg7 {[%clk 0:02:54.7]} 5. h4 {[%clk 0:03:00.3]}
5... c6 {[%clk 0:02:53.5]} 6. cxd5 {[%clk 0:03:00.1]} 6... cxd5 {[%clk
0:02:53.9]} 7. Bf4 {[%clk 0:03:00.7]} 7... Nc6 {[%clk 0:02:54.4]} 8. e3 {[%clk
0:03:01.3]} 8... O-O {[%clk 0:02:54.1]} 9. Qb3 {[%clk 0:03:01.9]} 9... Na5
{[%clk 0:02:52.5]} 10. Qa3 {[%clk 0:03:01.9]} 10... a6 {[%clk 0:02:47.7]} 11.
Bd3 {[%clk 0:02:59]} 11... b5 {[%clk 0:02:46.7]} 12. O-O {[%clk 0:02:55.1]}
12... Bb7 {[%clk 0:02:46.3]} 13. b3 {[%clk 0:02:49.3]} 13... Nc6 {[%clk
0:02:34.8]} 14. Qb2 {[%clk 0:02:39.3]} 14... Rc8 {[%clk 0:02:34]} 15. Rac1
{[%clk 0:02:37.2]} 15... Qa5 {[%clk 0:02:33.8]} 16. a3 {[%clk 0:02:31.7]} 16...
Rfd8 {[%clk 0:02:18.9]} 17. Nb1 {[%clk 0:02:19.1]} 17... b4 {[%clk 0:02:12.9]}
18. a4 {[%clk 0:02:13.1]} 18... Ne4 {[%clk 0:02:11]} 19. Nfd2 {[%clk 0:01:58.5]}
19... e5 {[%clk 0:01:47.8]} 20. dxe5 {[%clk 0:01:50.2]} 20... Nxd2 {[%clk
0:01:45.9]} 21. Nxd2 {[%clk 0:01:51.1]} 21... d4 {[%clk 0:01:42]} 22. Nc4 {[%clk
0:01:49.1]} 22... Qd5 {[%clk 0:01:40.8]} 23. Nb6 {[%clk 0:01:37.7]} 23... Qe6
{[%clk 0:01:40.7]} 24. Nxc8 {[%clk 0:01:36.9]} 24... Bxc8 {[%clk 0:01:40.9]} 25.
Bg5 {[%clk 0:01:24.8]} 25... Rd7 {[%clk 0:01:28.2]} 26. exd4 {[%clk 0:01:18.5]}
26... Bb7 {[%clk 0:01:27.8]} 27. Be4 {[%clk 0:01:13.5]} 27... h6 {[%clk
0:01:09.3]} 28. Be3 {[%clk 0:01:07.6]} 28... Nxd4 {[%clk 0:00:47.8]} 29. Bxb7
{[%clk 0:01:01.3]} 29... Bxe5 {[%clk 0:00:47]} 30. Bxd4 {[%clk 0:00:41.1]} 30...
Rxd4 {[%clk 0:00:35]} 31. g3 {[%clk 0:00:20.5]} 31... g5 {[%clk 0:00:11.6]} 32.
Qc2 {[%clk 0:00:18.9]} 32... Kg7 {[%clk 0:00:06.9]} 33. Bc8 {[%clk 0:00:17.3]}
33... Qf6 {[%clk 0:00:03.6]} 34. Qf5 {[%clk 0:00:16.6]} 1-0

[Event "*** Titled Tuesday Blitz"]
[Site "Chess.com"]
[Date "2020.11.03"]
[Round "7"]
[White "IMJonathanCarlstedt"]
[Black "saraswathii"]
[Result "1-0"]
[WhiteElo "2509"]
[BlackElo "2372"]
[TimeControl "180+1"]
[EndTime "11:20:50 PST"]
[Termination "IMJonathanCarlstedt won on time"]

1. d4 {[%clk 0:03:00.9]} 1... g6 {[%clk 0:02:56.6]} 2. e4 {[%clk 0:02:58.5]}
2... Bg7 {[%clk 0:02:55.9]} 3. Nc3 {[%clk 0:02:57.4]} 3... e6 {[%clk 0:02:48.2]}
4. h4 {[%clk 0:02:56.1]} 4... h5 {[%clk 0:02:47.6]} 5. Bg5 {[%clk 0:02:55.8]}
5... Ne7 {[%clk 0:02:46.3]} 6. d5 {[%clk 0:02:55.8]} 6... d6 {[%clk 0:02:40.1]}
7. dxe6 {[%clk 0:02:52.1]} 7... Bxe6 {[%clk 0:02:39.4]} 8. Nf3 {[%clk
0:02:52.6]} 8... Nbc6 {[%clk 0:02:36.6]} 9. Bb5 {[%clk 0:02:48.5]} 9... Qd7
{[%clk 0:02:34.4]} 10. O-O {[%clk 0:02:44.7]} 10... O-O {[%clk 0:02:33.3]} 11.
Nd5 {[%clk 0:02:41.2]} 11... f6 {[%clk 0:02:26.5]} 12. Be3 {[%clk 0:02:35.8]}
12... a6 {[%clk 0:02:19.4]} 13. Ba4 {[%clk 0:02:35.3]} 13... b5 {[%clk
0:02:12.8]} 14. Bb3 {[%clk 0:02:35]} 14... f5 {[%clk 0:02:07.7]} 15. Ng5 {[%clk
0:02:32.3]} 15... Bxd5 {[%clk 0:02:04.2]} 16. Bxd5+ {[%clk 0:02:30.4]} 16...
Nxd5 {[%clk 0:01:58.3]} 17. exd5 {[%clk 0:02:29.1]} 17... Ne5 {[%clk 0:01:52.7]}
18. Ne6 {[%clk 0:02:28.3]} 18... Rfe8 {[%clk 0:01:49]} 19. Bd4 {[%clk 0:02:27]}
19... c6 {[%clk 0:01:43]} 20. Nxg7 {[%clk 0:02:25.4]} 20... Kxg7 {[%clk
0:01:39]} 21. dxc6 {[%clk 0:02:25.1]} 21... Qxc6 {[%clk 0:01:37]} 22. f4 {[%clk
0:02:23.5]} 22... Rad8 {[%clk 0:01:29]} 23. Qe2 {[%clk 0:02:09.6]} 23... Kh7
{[%clk 0:01:21.6]} 24. fxe5 {[%clk 0:02:08.8]} 24... dxe5 {[%clk 0:01:22.5]} 25.
Bc3 {[%clk 0:02:08.6]} 25... b4 {[%clk 0:01:12.2]} 26. Be1 {[%clk 0:02:02.4]}
26... Rd4 {[%clk 0:01:06]} 27. Bf2 {[%clk 0:01:44.6]} 27... Re4 {[%clk
0:01:00.3]} 28. Qd3 {[%clk 0:01:44.2]} 28... Rg4 {[%clk 0:00:54.1]} 29. g3
{[%clk 0:01:43.5]} 29... f4 {[%clk 0:00:51.3]} 30. Rad1 {[%clk 0:01:37]} 30...
Re7 {[%clk 0:00:27.1]} 31. Qd6 {[%clk 0:01:30.7]} 31... Qxd6 {[%clk 0:00:18.8]}
32. Rxd6 {[%clk 0:01:31.6]} 32... fxg3 {[%clk 0:00:19]} 33. Bc5 {[%clk
0:01:26.7]} 33... Rxh4 {[%clk 0:00:18.4]} 34. Rdf6 {[%clk 0:01:14.2]} 34... Rc7
{[%clk 0:00:14.6]} 35. Rf7+ {[%clk 0:01:13.4]} 35... Rxf7 {[%clk 0:00:12.1]} 36.
Rxf7+ {[%clk 0:01:14.3]} 36... Kg8 {[%clk 0:00:11.1]} 37. Rf3 {[%clk 0:01:13]}
37... Rc4 {[%clk 0:00:10.6]} 38. Bd6 {[%clk 0:01:05.2]} 38... h4 {[%clk
0:00:09.9]} 39. Bxe5 {[%clk 0:01:03.4]} 39... Rxc2 {[%clk 0:00:09.6]} 40. Rb3
{[%clk 0:00:59.7]} 40... a5 {[%clk 0:00:06]} 41. a3 {[%clk 0:00:56.3]} 41...
bxa3 {[%clk 0:00:04.8]} 42. Rxa3 {[%clk 0:00:57.2]} 42... g5 {[%clk 0:00:04.6]}
43. Rxa5 {[%clk 0:00:56]} 43... Kf7 {[%clk 0:00:04.1]} 44. b4 {[%clk 0:00:53.1]}
44... Re2 {[%clk 0:00:03.3]} 45. Rc5 {[%clk 0:00:51.6]} 45... Ke6 {[%clk
0:00:01.8]} 46. Bc7 {[%clk 0:00:51]} 46... Kf6 {[%clk 0:00:01.3]} 47. b5 {[%clk
0:00:49.5]} 47... Kg6 {[%clk 0:00:01.6]} 48. b6 {[%clk 0:00:49.2]} 1-0

[Event "*** Titled Tuesday Blitz"]
[Site "Chess.com"]
[Date "2020.11.03"]
[Round "7"]
[White "MF1966Idrisov"]
[Black "vanyakuba"]
[Result "1/2-1/2"]
[WhiteElo "2361"]
[BlackElo "2511"]
[TimeControl "180+1"]
[EndTime "11:20:51 PST"]
[Termination "Game drawn by repetition"]

1. Nf3 {[%clk 0:03:00.9]} 1... d5 {[%clk 0:03:00.1]} 2. b3 {[%clk 0:03:00.9]}
2... c5 {[%clk 0:03:00]} 3. Bb2 {[%clk 0:03:01.2]} 3... Nc6 {[%clk 0:02:59.8]}
4. e3 {[%clk 0:03:01.2]} 4... a6 {[%clk 0:03:00.2]} 5. d4 {[%clk 0:03:00.7]}
5... Nf6 {[%clk 0:02:59.9]} 6. Bd3 {[%clk 0:02:57.4]} 6... Bg4 {[%clk
0:02:59.5]} 7. O-O {[%clk 0:02:56.9]} 7... e6 {[%clk 0:02:55.1]} 8. Nbd2 {[%clk
0:02:55.5]} 8... Bd6 {[%clk 0:02:52]} 9. a3 {[%clk 0:02:53.9]} 9... O-O {[%clk
0:02:48.3]} 10. Qe1 {[%clk 0:02:53]} 10... Rc8 {[%clk 0:02:39.3]} 11. Ne5 {[%clk
0:02:48.5]} 11... Qc7 {[%clk 0:02:13.6]} 12. f4 {[%clk 0:02:30.8]} 12... Qb6
{[%clk 0:01:44]} 13. Nxc6 {[%clk 0:01:54.3]} 13... bxc6 {[%clk 0:01:30.7]} 14.
dxc5 {[%clk 0:01:51.1]} 14... Bxc5 {[%clk 0:01:24]} 15. Bxf6 {[%clk 0:01:50.6]}
15... gxf6 {[%clk 0:01:24.4]} 16. Qg3 {[%clk 0:01:37.4]} 16... Bxe3+ {[%clk
0:01:03.3]} 17. Kh1 {[%clk 0:01:36.3]} 17... f5 {[%clk 0:00:54.7]} 18. h3 {[%clk
0:01:35.7]} 18... Bxd2 {[%clk 0:00:53.9]} 19. hxg4 {[%clk 0:01:34.3]} 19... Kh8
{[%clk 0:00:41.9]} 20. gxf5 {[%clk 0:01:29.4]} 20... Rg8 {[%clk 0:00:42]} 21.
Qh3 {[%clk 0:01:23.7]} 21... Qe3 {[%clk 0:00:22.9]} 22. Rf3 {[%clk 0:01:06.6]}
22... Qd4 {[%clk 0:00:23.3]} 23. Raf1 {[%clk 0:01:05.1]} 23... Qg7 {[%clk
0:00:21.8]} 24. fxe6 {[%clk 0:00:54.4]} 24... fxe6 {[%clk 0:00:20.8]} 25. Rg3
{[%clk 0:00:54]} 25... Qe7 {[%clk 0:00:17.2]} 26. Rg5 {[%clk 0:00:48.5]} 26...
Rxg5 {[%clk 0:00:13.7]} 27. fxg5 {[%clk 0:00:45.1]} 27... Bxg5 {[%clk
0:00:14.3]} 28. Qh5 {[%clk 0:00:45.3]} 28... Bf6 {[%clk 0:00:05.7]} 29. Bxh7
{[%clk 0:00:41.6]} 29... Qxh7 {[%clk 0:00:04.8]} 30. Qxh7+ {[%clk 0:00:40.6]}
30... Kxh7 {[%clk 0:00:05.7]} 31. Rxf6 {[%clk 0:00:40.6]} 31... Re8 {[%clk
0:00:05]} 32. Rf7+ {[%clk 0:00:39.7]} 32... Kg6 {[%clk 0:00:05.6]} 33. Rc7
{[%clk 0:00:39.3]} 33... a5 {[%clk 0:00:04.9]} 34. Rxc6 {[%clk 0:00:38.1]} 34...
Kf5 {[%clk 0:00:05.5]} 35. Kg1 {[%clk 0:00:38.3]} 35... Rb8 {[%clk 0:00:05.3]}
36. Kf2 {[%clk 0:00:36.6]} 36... e5 {[%clk 0:00:05.3]} 37. Rc5 {[%clk
0:00:35.7]} 37... Ke4 {[%clk 0:00:05.6]} 38. c3 {[%clk 0:00:30.3]} 38... Rf8+
{[%clk 0:00:05.4]} 39. Ke2 {[%clk 0:00:29.9]} 39... Rg8 {[%clk 0:00:05.8]} 40.
Kf2 {[%clk 0:00:29]} 40... Rf8+ {[%clk 0:00:06.2]} 41. Ke2 {[%clk 0:00:29.1]}
41... Rg8 {[%clk 0:00:06.6]} 42. Kf2 {[%clk 0:00:29.5]} 42... Rf8+ {[%clk
0:00:07.1]} 1/2-1/2

[Event "*** Titled Tuesday Blitz"]
[Site "Chess.com"]
[Date "2020.11.03"]
[Round "7"]
[White "Tashik"]
[Black "barriochess"]
[Result "1-0"]
[WhiteElo "2490"]
[BlackElo "2362"]
[TimeControl "180+1"]
[EndTime "11:20:52 PST"]
[Termination "Tashik won by resignation"]

1. c4 {[%clk 0:03:00.9]} 1... e6 {[%clk 0:02:59.1]} 2. Nc3 {[%clk 0:02:58.1]}
2... d5 {[%clk 0:02:58.4]} 3. d4 {[%clk 0:02:58.5]} 3... c5 {[%clk 0:02:55.6]}
4. e3 {[%clk 0:02:57.3]} 4... Nf6 {[%clk 0:02:54.8]} 5. Nf3 {[%clk 0:02:57.9]}
5... a6 {[%clk 0:02:52.7]} 6. cxd5 {[%clk 0:02:56.1]} 6... exd5 {[%clk
0:02:52.1]} 7. g3 {[%clk 0:02:55]} 7... c4 {[%clk 0:02:46.6]} 8. Bg2 {[%clk
0:02:55.1]} 8... Bb4 {[%clk 0:02:41.3]} 9. O-O {[%clk 0:02:55.6]} 9... O-O
{[%clk 0:02:39.8]} 10. Bd2 {[%clk 0:02:54.5]} 10... Nc6 {[%clk 0:02:38.4]} 11.
b3 {[%clk 0:02:54.3]} 11... Bxc3 {[%clk 0:02:36.9]} 12. Bxc3 {[%clk 0:02:53.9]}
12... Ne4 {[%clk 0:02:37.8]} 13. Qe1 {[%clk 0:02:36.1]} 13... b5 {[%clk
0:02:37.3]} 14. bxc4 {[%clk 0:02:31.9]} 14... bxc4 {[%clk 0:02:36.5]} 15. Ne5
{[%clk 0:02:23.5]} 15... Nxe5 {[%clk 0:02:34.8]} 16. dxe5 {[%clk 0:02:23.3]}
16... Be6 {[%clk 0:02:25.7]} 17. Bd4 {[%clk 0:02:21.8]} 17... f5 {[%clk
0:02:08.1]} 18. h4 {[%clk 0:02:14]} 18... Qc7 {[%clk 0:01:56.6]} 19. Qb4 {[%clk
0:01:54.4]} 19... Rfb8 {[%clk 0:01:51.7]} 20. Qa3 {[%clk 0:01:54.1]} 20... h6
{[%clk 0:01:40.5]} 21. Kh2 {[%clk 0:01:42.8]} 21... Rb5 {[%clk 0:01:30.7]} 22.
Rab1 {[%clk 0:01:15.5]} 22... Rab8 {[%clk 0:01:24.4]} 23. Qxa6 {[%clk
0:01:03.2]} 23... Bc8 {[%clk 0:01:14.8]} 24. Qxb5 {[%clk 0:00:54.6]} 24... Rxb5
{[%clk 0:01:14.4]} 25. Rxb5 {[%clk 0:00:55.5]} 25... Qc6 {[%clk 0:01:09.4]} 26.
Rb6 {[%clk 0:00:44.5]} 26... Qe8 {[%clk 0:01:01]} 27. Rb8 {[%clk 0:00:40.4]}
27... Kh7 {[%clk 0:00:59.6]} 28. f3 {[%clk 0:00:32.2]} 28... Nd2 {[%clk
0:00:55.4]} 29. Rd1 {[%clk 0:00:32.7]} 29... c3 {[%clk 0:00:51.1]} 30. Bxc3
{[%clk 0:00:31.8]} 30... Nc4 {[%clk 0:00:51.2]} 31. Bd4 {[%clk 0:00:26.1]} 31...
Qa4 {[%clk 0:00:43.2]} 32. Rc1 {[%clk 0:00:16.5]} 32... Bd7 {[%clk 0:00:41.8]}
33. f4 {[%clk 0:00:13.3]} 33... Qxa2 {[%clk 0:00:38.8]} 34. e6 {[%clk
0:00:11.9]} 34... Bxe6 {[%clk 0:00:27.4]} 35. Rb7 {[%clk 0:00:12.4]} 35... h5
{[%clk 0:00:20]} 36. Ra1 {[%clk 0:00:12.1]} 36... Qf2 {[%clk 0:00:16]} 37. Rxg7+
{[%clk 0:00:11.6]} 37... Kh6 {[%clk 0:00:15.7]} 38. Ra6 {[%clk 0:00:11.8]} 1-0

[Event "*** Titled Tuesday Blitz"]
[Site "Chess.com"]
[Date "2020.11.03"]
[Round "7"]
[White "Fins0905"]
[Black "Pilopa"]
[Result "1-0"]
[WhiteElo "2621"]
[BlackElo "2478"]
[TimeControl "180+1"]
[EndTime "11:20:58 PST"]
[Termination "Fins0905 won on time"]

1. e4 {[%clk 0:03:00.9]} 1... c6 {[%clk 0:02:59.6]} 2. d4 {[%clk 0:02:57.8]}
2... d5 {[%clk 0:03:00]} 3. e5 {[%clk 0:02:56.2]} 3... c5 {[%clk 0:02:59.7]} 4.
dxc5 {[%clk 0:02:54.5]} 4... e6 {[%clk 0:03:00.2]} 5. Be3 {[%clk 0:02:54.1]}
5... Nd7 {[%clk 0:02:59]} 6. Bb5 {[%clk 0:02:49.2]} 6... Ne7 {[%clk 0:02:54.5]}
7. c3 {[%clk 0:02:42.3]} 7... Nf5 {[%clk 0:02:51.5]} 8. Bd4 {[%clk 0:02:37.8]}
8... Qa5 {[%clk 0:02:38.3]} 9. Qa4 {[%clk 0:02:23.8]} 9... Qxa4 {[%clk
0:02:02.9]} 10. Bxa4 {[%clk 0:02:24.7]} 10... Kd8 {[%clk 0:01:55.3]} 11. Bxd7
{[%clk 0:02:09.6]} 11... Bxd7 {[%clk 0:01:56.2]} 12. Nd2 {[%clk 0:01:57.9]}
12... b6 {[%clk 0:01:44]} 13. cxb6 {[%clk 0:01:51.7]} 13... Nxd4 {[%clk
0:01:43.5]} 14. cxd4 {[%clk 0:01:51.7]} 14... axb6 {[%clk 0:01:43.7]} 15. Ne2
{[%clk 0:01:44.6]} 15... Bb4 {[%clk 0:01:31.1]} 16. a3 {[%clk 0:01:42.8]} 16...
Bb5 {[%clk 0:01:04.8]} 17. Rc1 {[%clk 0:01:31.8]} 17... Be7 {[%clk 0:01:04.7]}
18. Nc3 {[%clk 0:01:15.8]} 18... Bd3 {[%clk 0:01:03.1]} 19. Nf3 {[%clk
0:01:00.1]} 19... Kd7 {[%clk 0:00:58.9]} 20. Kd2 {[%clk 0:00:57.8]} 20... Bc4
{[%clk 0:00:58.4]} 21. h4 {[%clk 0:00:49.8]} 21... h6 {[%clk 0:00:47.4]} 22. Ke3
{[%clk 0:00:40]} 22... Rhb8 {[%clk 0:00:42.7]} 23. Nd2 {[%clk 0:00:33.8]} 23...
b5 {[%clk 0:00:29.2]} 24. b3 {[%clk 0:00:25.5]} 24... Rxa3 {[%clk 0:00:21.8]}
25. Ncb1 {[%clk 0:00:21.9]} 25... Ra2 {[%clk 0:00:15.1]} 26. bxc4 {[%clk
0:00:20]} 26... bxc4 {[%clk 0:00:16]} 27. Nc3 {[%clk 0:00:18.3]} 27... Ra3
{[%clk 0:00:16.5]} 28. Rc2 {[%clk 0:00:15.9]} 28... Rba8 {[%clk 0:00:08.5]} 29.
g3 {[%clk 0:00:14.2]} 29... Bb4 {[%clk 0:00:08.5]} 30. Rhc1 {[%clk 0:00:14.1]}
30... Ba5 {[%clk 0:00:05.9]} 31. Ke2 {[%clk 0:00:13.5]} 31... Rb8 {[%clk
0:00:06.3]} 32. Ndb1 {[%clk 0:00:12.6]} 32... Ra1 {[%clk 0:00:04.7]} 33. Nd2
{[%clk 0:00:10.4]} 33... Ra3 {[%clk 0:00:04.2]} 34. Nd1 {[%clk 0:00:08.2]} 34...
Rd3 {[%clk 0:00:03.2]} 35. Nb1 {[%clk 0:00:07.7]} 35... Rdb3 {[%clk 0:00:02.9]}
36. Nbc3 {[%clk 0:00:07.8]} 36... Kc6 {[%clk 0:00:02]} 37. Ne3 {[%clk
0:00:08.2]} 1-0